bitfinex-derivatives/quotes_ETHF0:USTF0_20240917
["timestamp","ask_amount","ask_price","bid_price","bid_amount"]
[1726587215238,0.42047,2377.7,2377.4,3.2078]
[1726587215550,0.4205,2377.6,2377.2,1.83195]
[1726587215841,3.2078,2377.7,2377.2,1.4114]
[1726587216036,3.2078,2377.7,2377.4,0.42051]
[1726587216338,3.62822,2378.0,2377.6,0.42048]
[1726587216538,4.04,2378.1,2377.7,3.2078]
[1726587217344,4.04,2378.7,2378.0,3.2078]
[1726587217544,0.42031,2378.6,2378.1,1.322]
[1726587217837,0.42037,2378.3,2378.1,1.322]
[1726587218044,0.42035,2378.4,2378.1,1.322]
[1726587218432,4.04,2378.4,2378.1,1.322]
[1726587218633,4.04,2378.4,2377.8,3.2078]
[1726587218836,4.04,2378.1,2377.7,1.322]
[1726587219039,5.09101,2378.1,2377.6,1.3783]
[1726587219236,6.0553,2378.3,2377.5,3.2078]
[1726587219237,4.04,2377.8,2377.5,3.2078]
[1726587219442,0.42047,2377.7,2377.5,3.2078]
[1726587219642,0.4205,2377.6,2377.2,1.4458]
[1726587220037,4.46046,2377.8,2377.2,1.4458]
[1726587220341,4.46046,2377.8,2377.0,4.25925]
[1726587220342,1.05121,2377.6,2377.0,3.2078]
[1726587220535,4.04,2377.8,2376.3,1.05177]
[1726587220536,0.42065,2376.7,2376.3,0.4207]
[1726587220740,0.42071,2376.3,2376.2,3.2078]
[1726587220936,4.04,2376.8,2376.2,3.2078]
[1726587221136,1.05161,2376.7,2376.0,1.4458]
[1726587221345,4.04,2376.5,2376.0,1.4458]
[1726587221638,3.2078,2376.9,2376.2,3.2078]
[1726587221840,0.211,2377.6,2376.8,4.04]
[1726587222045,0.211,2377.6,2375.9,1.3137]
[1726587222046,0.42048,2377.6,2377.1,3.2078]
[1726587222238,1.051,2378.1,2377.1,3.2078]
[1726587222239,0.42052,2377.4,2377.1,3.2078]
[1726587222445,4.04,2377.7,2377.1,3.2078]
[1726587222446,0.42049,2377.6,2377.1,3.2078]
[1726587222743,5.84247,2377.7,2377.1,3.2078]
[1726587223058,5.422,2377.7,2377.1,3.2078]
[1726587223339,1.382,2377.7,2377.4,3.2078]
[1726587223745,0.4205,2377.5,2377.4,3.2078]
[1726587223935,11.422,2377.7,2377.0,3.2078]
[1726587223936,4.2064,2377.6,2377.0,3.2078]
[1726587224137,5.422,2377.7,2377.0,3.2078]
[1726587224544,0.42051,2377.5,2377.0,3.62838]
[1726587224739,5.422,2377.7,2377.0,3.2078]
[1726587224940,1.05121,2377.6,2377.0,3.2078]
[1726587225241,0.42054,2377.3,2377.0,3.2078]
[1726587225444,4.04,2377.4,2377.0,3.2078]
[1726587225644,4.04,2377.4,2377.0,3.62838]
[1726587226342,4.04,2377.4,2377.0,3.2078]
[1726587226544,4.2064,2377.3,2376.4,3.2078]
[1726587226745,7.2478,2377.1,2376.0,2.7354]
[1726587226940,4.04,2377.0,2376.0,2.7354]
[1726587227140,4.04,2376.7,2376.0,2.7354]
[1726587227335,0.42071,2376.4,2376.0,2.7354]
[1726587227633,4.25934,2376.9,2376.0,2.7354]
[1726587227634,3.2078,2376.9,2376.0,2.7354]
[1726587227841,3.2078,2376.9,2376.3,3.2078]
[1726587228142,3.2078,2376.9,2376.6,0.42065]
[1726587228337,3.2078,2377.3,2376.7,0.42063]
[1726587228533,3.2078,2377.3,2376.1,6.41867]
[1726587228534,3.2078,2377.3,2376.6,3.2078]
[1726587228741,3.2078,2377.3,2376.9,0.42059]
[1726587228944,3.2078,2377.3,2376.7,2.7002]
[1726587229342,3.2078,2377.3,2377.0,0.42058]
[1726587229639,3.2078,2377.3,2377.0,0.42057]
[1726587229848,3.2078,2377.3,2377.0,0.42059]
[1726587230147,3.2078,2377.3,2376.8,1.3268]
[1726587230339,3.2078,2377.3,2377.0,0.42057]
[1726587230541,3.2078,2377.3,2376.8,1.3268]
[1726587230740,3.2078,2377.3,2376.7,2.7002]
[1726587230941,0.42056,2377.2,2376.7,3.12084]
[1726587231246,3.2078,2377.3,2376.7,2.7002]
[1726587231445,2.37666,2377.5,2376.7,2.7002]
[1726587231641,0.42059,2377.0,2376.7,2.7002]
[1726587231840,0.42061,2376.9,2376.7,1.383]
[1726587232047,4.25919,2377.2,2376.6,3.2078]
[1726587232048,1.05143,2377.1,2376.6,3.2078]
[1726587232246,4.04,2377.0,2376.3,4.5194]
[1726587232453,0.42064,2376.8,2376.3,4.5194]
[1726587232945,0.42064,2376.7,2376.3,4.5194]
[1726587233145,1.3892,2376.9,2376.3,4.5194]
[1726587233650,0.42063,2376.8,2376.3,4.94011]
[1726587233947,1.80982,2376.9,2376.3,4.94011]
[1726587234147,1.3892,2376.9,2376.3,4.9401]
[1726587234444,2.44072,2376.9,2376.3,3.2078]
[1726587234647,1.3892,2376.9,2376.1,2.7226]
[1726587234952,0.42065,2376.7,2376.1,5.9304]
[1726587235147,0.42066,2376.6,2376.1,6.35114]
[1726587235651,1.3892,2376.9,2376.1,5.9304]
[1726587235847,1.3892,2376.9,2376.5,0.42067]
[1726587236153,0.42063,2376.8,2376.4,2.5879]
[1726587236338,0.42063,2376.8,2376.3,0.4207]
[1726587236541,1.3892,2376.9,2376.3,0.4207]
[1726587236742,1.80981,2376.9,2376.4,0.42068]
[1726587236943,1.3892,2376.9,2376.2,0.42073]
[1726587237150,0.42067,2376.6,2376.1,6.35114]
[1726587237344,2.44075,2376.9,2376.1,6.35114]
[1726587237345,1.05157,2376.8,2376.1,5.9304]
[1726587237848,8.29941,2376.7,2376.1,1.308]
[1726587238053,0.42072,2376.3,2376.1,1.308]
[1726587238345,8.29941,2376.7,2376.1,1.308]
[1726587238346,3.2078,2376.4,2376.1,1.308]
[1726587238547,0.42072,2376.3,2376.1,1.308]
[1726587238741,0.42073,2376.3,2376.1,1.308]
[1726587239247,0.42073,2376.3,2375.9,0.42078]
[1726587239450,4.04,2376.7,2376.1,3.2078]
[1726587239752,0.4207,2376.4,2376.1,3.2078]
[1726587240145,0.42072,2376.3,2376.1,3.2078]
[1726587240346,0.42074,2376.2,2375.8,4.99519]
[1726587240546,0.42074,2376.2,2375.8,4.5744]
[1726587240741,0.42072,2376.3,2375.9,0.42078]
[1726587240947,4.04,2376.7,2375.8,4.5744]
[1726587241247,4.04,2376.7,2375.9,1.05196]
[1726587241441,1.3529,2376.8,2376.4,3.2078]
[1726587241640,0.42058,2377.1,2376.7,3.62844]
[1726587241844,3.2078,2377.2,2376.7,3.2078]
[1726587242244,1.3953,2377.3,2377.0,0.42058]
[1726587242555,4.04,2377.8,2377.2,3.2078]
[1726587242854,4.6031,2377.9,2377.5,3.2078]
[1726587243251,4.6031,2377.9,2377.6,0.42048]
[1726587243552,4.6031,2377.9,2377.6,3.62827]
[1726587243749,5.3597,2378.1,2377.6,3.2078]
[1726587244055,5.3597,2378.1,2376.9,3.2078]
[1726587244056,1.05122,2377.6,2376.9,3.2078]
[1726587244257,3.2078,2377.0,2376.5,3.2078]
[1726587244453,4.04,2377.2,2376.5,3.2078]
[1726587244761,4.04,2377.2,2376.7,0.42063]
[1726587245054,4.04,2377.2,2376.5,3.2078]
[1726587245055,0.42058,2377.1,2376.6,0.42065]
[1726587245254,0.4206,2377.0,2376.5,3.62847]
[1726587245447,4.46056,2377.2,2376.5,3.2078]
[1726587245646,0.42056,2377.2,2376.8,0.42062]
[1726587245852,0.42056,2377.2,2376.6,4.5779]
[1726587246351,1.4276,2377.4,2376.7,1.75144]
[1726587246352,5.68674,2377.4,2376.7,1.75144]
[1726587246659,0.42056,2377.2,2376.8,0.42062]
[1726587247156,0.42056,2377.2,2376.7,1.3308]
[1726587247157,1.4276,2377.4,2376.7,1.3308]
[1726587247852,0.42057,2377.1,2376.7,1.75143]
[1726587248057,0.42056,2377.2,2376.8,0.42062]
[1726587248255,4.6354,2377.4,2376.7,1.3308]
[1726587248450,0.42056,2377.2,2376.7,1.3308]
[1726587248758,4.6354,2377.4,2376.7,1.75143]
[1726587248959,0.42056,2377.2,2376.7,1.75143]
[1726587249158,0.42055,2377.3,2376.7,1.3308]
[1726587249450,0.42055,2377.3,2376.9,0.4206]
[1726587249756,3.2078,2377.7,2377.2,3.62835]
[1726587249962,3.2078,2377.7,2377.2,0.42054]
[1726587250158,3.2078,2377.7,2377.3,1.80532]
[1726587250457,1.4225,2377.8,2377.4,0.42051]
[1726587250655,1.84295,2377.8,2377.3,1.3848]
[1726587250956,1.4225,2377.8,2377.5,0.4205]
[1726587251758,6.8255,2378.1,2377.6,0.42048]
[1726587251962,6.8203,2378.1,2377.6,0.42048]
[1726587252255,1.85282991,2378.4,2377.3,5.931]
[1726587252256,6.44935293,2378.4,2377.3,2.7232]
[1726587252456,6.44935293,2378.4,2377.5,3.62829]
[1726587252457,0.4204,2378.1,2377.5,3.62829]
[1726587252649,3.62817,2378.3,2377.5,3.2078]
[1726587252853,1.3972,2378.4,2378.1,3.2078]
[1726587253161,1.3972,2378.4,2378.1,3.62818]
[1726587253351,1.3972,2378.4,2378.0,0.4204]
[1726587253554,1.3972,2378.4,2377.8,3.2078]
[1726587253857,1.50882293,2378.8,2378.1,0.42038]
[1726587254051,1.3686,2378.8,2377.9,2.7796]
[1726587254255,1.3686,2378.8,2378.0,0.42041]
[1726587254455,1.3686,2378.8,2378.1,0.42038]
[1726587254650,1.3686,2378.8,2377.9,2.7796]
[1726587254853,1.3686,2378.8,2378.1,3.2078]
[1726587255060,1.78888,2378.8,2378.1,3.62819]
[1726587255556,1.3686,2378.8,2378.2,0.42037]
[1726587255756,1.3686,2378.8,2378.1,3.2078]
[1726587256255,1.3686,2378.8,2378.3,3.2078]
[1726587256560,1.3686,2378.8,2378.2,0.42037]
[1726587256761,1.3686,2378.8,2378.2,3.2078]
[1726587256968,1.08855293,2379.5,2378.6,3.2078]
[1726587257264,1.08855293,2379.5,2378.3,4.204]
[1726587257265,0.42021,2379.2,2378.5,0.42032]
[1726587257456,0.42022,2379.1,2378.6,3.2078]
[1726587257657,4.5909,2379.3,2378.6,3.2078]
[1726587257859,0.42023,2379.1,2378.6,3.2078]
[1726587258159,4.5909,2379.3,2378.5,0.42031]
[1726587258357,4.5909,2379.3,2378.3,4.87559798]
[1726587258557,4.5909,2379.3,2378.3,4.6461]
[1726587258558,0.42026,2378.9,2378.3,4.6461]
[1726587258761,3.62808,2378.8,2378.3,4.6461]
[1726587258959,3.62808,2378.8,2377.3,0.211]
[1726587258960,7.2478,2378.4,2377.3,0.211]
[1726587259266,7.2478,2378.4,2377.4,0.42051]
[1726587259267,3.62821,2378.0,2377.4,0.42051]
[1726587259471,3.62821,2378.0,2377.0,1.3185]
[1726587259472,1.3797,2377.9,2377.0,1.3185]
[1726587259669,1.3797,2377.9,2376.9,2.7616]
[1726587259670,3.2078,2377.7,2376.9,1.4021]
[1726587259968,3.2078,2377.4,2376.9,1.4021]
[1726587260169,0.42056,2377.2,2376.9,1.4021]
[1726587260367,0.42054,2377.3,2376.7,0.42064]
[1726587260667,3.2078,2377.1,2376.7,0.42064]
[1726587260865,1.3797,2377.2,2376.8,0.42062]
[1726587261464,1.3797,2377.2,2376.8,0.42061]
[1726587261871,1.3797,2377.2,2376.5,7.4122]
[1726587262072,1.3797,2377.2,2376.8,0.42061]
[1726587262373,1.3797,2377.2,2376.8,0.42062]
[1726587262667,1.3797,2377.2,2376.9,0.4206]
[1726587262873,1.3797,2377.2,2376.5,7.4122]
[1726587263177,6.0483,2377.7,2377.2,0.42055]
[1726587263472,0.4205,2377.5,2376.5,11.9522]
[1726587263665,1.3882,2377.6,2376.6,1.05165]
[1726587263863,1.80869,2377.6,2377.0,0.42058]
[1726587264170,3.2078,2377.4,2377.0,0.42058]
[1726587264375,1.80869,2377.6,2377.4,0.42051]
[1726587264376,1.3882,2377.6,2377.4,0.42051]
[1726587264566,1.3882,2377.6,2377.3,0.42053]
[1726587264567,4.596,2377.6,2377.3,0.42053]
[1726587264873,4.596,2377.6,2377.5,0.4205]
[1726587265067,3.2078,2377.9,2377.6,0.42047]
[1726587265373,6.98455293,2378.3,2377.1,1.05143]
[1726587265374,3.2078,2378.3,2377.4,1.0513]
[1726587265570,1.08855293,2378.6,2378.1,0.42039]
[1726587265571,1.4111,2378.5,2378.1,0.42039]
[1726587265765,1.4111,2378.5,2377.6,4.25901]
[1726587266075,3.2078,2378.6,2378.5,0.42032]
[1726587266269,0.42025,2379.0,2378.7,0.42028]
[1726587266270,4.6189,2379.0,2378.7,0.42028]
[1726587266572,4.6189,2379.0,2378.7,0.42027]
[1726587266875,0.42035,2378.4,2378.2,1.3231]
[1726587267061,0.42035,2378.4,2377.9,3.62822]
[1726587267062,3.2078,2378.4,2377.9,3.2078]
[1726587267262,3.2078,2378.4,2377.6,1.3231]
[1726587267263,1.4111,2378.3,2377.6,1.3231]
[1726587267466,1.83146,2378.3,2377.8,0.42043]
[1726587267768,1.4111,2378.3,2378.0,0.42041]
[1726587267963,1.4111,2378.3,2377.7,1.05117]
[1726587268164,1.4111,2378.3,2378.2,0.42038]
[1726587268469,3.2078,2378.7,2377.7,3.2078]
[1726587268670,4.5686,2378.7,2377.8,1.05112]
[1726587268973,4.5686,2378.7,2377.9,1.05108]
[1726587269171,4.98889,2378.7,2377.9,1.05108]
[1726587269472,4.98889,2378.7,2378.3,0.42035]
[1726587270170,4.98889,2378.7,2378.5,0.42031]
[1726587270171,1.3608,2378.7,2378.5,0.42031]
[1726587270572,1.3608,2378.7,2378.2,1.3777]
[1726587270874,1.3608,2378.7,2378.4,0.42033]
[1726587271173,1.3608,2378.7,2378.3,0.42035]
[1726587271372,3.2078,2378.5,2378.3,0.42035]
[1726587271568,3.2078,2378.5,2378.4,0.42034]
[1726587272173,3.2078,2378.9,2378.4,4.2048]
[1726587272374,3.2078,2378.9,2378.7,0.42027]
[1726587272677,3.2078,2378.9,2378.6,0.42029]
[1726587273064,3.2078,2378.9,2378.7,0.42028]
[1726587273269,3.2078,2378.9,2378.2,3.9654738]
[1726587273470,3.2078,2378.9,2378.6,0.4203]
[1726587274173,3.2078,2378.9,2378.6,0.42029]
[1726587274381,3.62806,2378.9,2378.5,0.42032]
[1726587274565,3.62807,2378.9,2378.4,0.42033]
[1726587274772,3.62807,2378.9,2378.5,0.42031]
[1726587274972,3.2078,2378.9,2378.6,0.4203]
[1726587275166,3.62806,2378.9,2378.5,0.42031]
[1726587275374,3.62806,2378.9,2378.2,2.9145538]
[1726587275581,3.2078,2378.9,2378.6,0.4203]
[1726587275877,3.62806,2378.9,2378.5,0.42031]
[1726587276077,3.62806,2378.9,2378.6,0.4203]
[1726587276271,3.62807,2378.9,2378.5,0.42032]
[1726587276474,0.42027,2378.8,2378.5,0.42032]
[1726587276675,0.42028,2378.8,2378.4,0.42033]
[1726587277073,3.2078,2378.5,2377.7,4.25892]
[1726587277386,0.4204,2378.1,2377.7,2.01532988]
[1726587277568,3.2078,2378.1,2377.8,0.42044]
[1726587277773,0.42042,2378.0,2377.7,1.3665]
[1726587277972,3.6282,2378.1,2377.3,3.2078]
[1726587278284,3.2078,2378.1,2377.3,3.2078]
[1726587278689,0.42042,2378.0,2377.5,0.42049]
[1726587278877,4.6001,2378.4,2377.2,1.3665]
[1726587279188,0.42038,2378.2,2377.7,0.42045]
[1726587279576,3.6282,2378.1,2377.2,1.59229606]
[1726587279879,0.42041,2378.0,2377.4,0.42051]
[1726587280182,3.2078,2377.8,2377.2,2.01283606]
[1726587280478,1.3198,2377.7,2377.2,2.01283606]
[1726587280681,1.3198,2377.7,2377.2,1.3665]
[1726587280872,3.2078,2377.5,2377.2,1.3665]
[1726587281482,3.2078,2377.5,2376.9,0.65033442]
[1726587282078,3.2078,2377.5,2376.9,0.22973442]
[1726587282285,3.2078,2377.5,2376.8,1.3383]
[1726587282589,3.2078,2377.5,2377.0,0.42058]
[1726587283092,3.2078,2377.5,2376.9,0.4206]
[1726587283283,3.62831,2377.5,2376.8,1.56597939]
[1726587283481,3.2078,2377.5,2377.0,0.42059]
[1726587283782,3.2078,2377.5,2377.1,0.42056]
[1726587283975,3.2078,2377.5,2377.0,0.42058]
[1726587284285,3.2078,2377.5,2376.8,1.56597939]
[1726587284679,0.42052,2377.4,2376.8,1.56597939]
[1726587284988,3.2078,2377.2,2376.8,1.3383]
[1726587285183,3.2078,2377.2,2376.9,0.4206]
[1726587285683,3.2078,2377.2,2376.8,1.75891]
[1726587286184,3.2078,2377.2,2376.7,7.89998862]
[1726587286392,3.2078,2377.2,2376.7,3.85998862]
[1726587286885,3.2078,2377.2,2376.8,0.42062]
[1726587287086,3.2078,2377.2,2376.7,3.85998862]
[1726587287485,3.2078,2377.2,2376.8,0.42062]
[1726587288383,3.2078,2377.2,2376.4,8.6185]
[1726587288584,3.2078,2376.9,2376.4,8.84440974]
[1726587288887,3.2078,2376.9,2376.6,0.42065]
[1726587289191,3.2078,2377.2,2376.8,3.2078]
[1726587289393,3.2078,2377.5,2377.2,0.42055]
[1726587289686,3.2078,2377.5,2377.1,0.42056]
[1726587289889,3.2078,2377.5,2377.0,0.42058]
[1726587289890,3.62831,2377.5,2377.0,0.42058]
[1726587290392,0.42052,2377.4,2376.9,4.46059]
[1726587290603,3.62831,2377.5,2377.0,0.42058]
[1726587290987,0.42052,2377.4,2377.0,0.42058]
[1726587291291,0.42052,2377.4,2376.7,4.04]
[1726587291292,3.2078,2377.5,2376.8,3.2078]
[1726587291490,3.62831,2377.5,2377.0,0.42059]
[1726587291693,0.42052,2377.4,2377.0,0.42059]
[1726587291879,3.62831,2377.5,2377.0,0.42059]
[1726587292084,3.62831,2377.5,2376.8,3.2078]
[1726587292290,0.42053,2377.4,2376.9,0.4206]
[1726587292592,3.2078,2377.5,2376.8,3.43015663]
[1726587292892,4.25908,2377.5,2376.8,3.43015663]
[1726587293082,3.6283,2377.5,2376.8,3.43015663]
[1726587293290,3.6283,2377.5,2377.1,0.42057]
[1726587293485,0.42052,2377.4,2377.0,0.42058]
[1726587293681,3.62831,2377.5,2376.7,4.04]
[1726587293886,3.2078,2377.5,2376.7,4.04]
[1726587294083,3.62831,2377.5,2376.7,5.31690657]
[1726587294390,3.62831,2377.5,2377.1,0.42057]
[1726587294991,3.2078,2377.5,2377.1,0.42056]
[1726587295184,0.42049,2377.6,2377.2,0.42055]
[1726587295593,1.3198,2377.7,2377.3,0.42053]
[1726587295594,1.74027,2377.7,2377.3,0.42053]
[1726587295788,1.3198,2377.7,2377.4,0.42051]
[1726587295984,1.3198,2377.7,2377.2,1.05139]
[1726587296188,1.3198,2377.7,2377.6,0.42048]
[1726587296393,4.528,2378.1,2377.3,5.09135]
[1726587296597,1.2935,2378.0,2377.7,0.42046]
[1726587296786,1.2935,2378.0,2377.8,0.42044]
[1726587296992,1.2935,2378.0,2377.3,4.04]
[1726587297195,1.71393,2378.0,2377.3,4.04]
[1726587297393,4.92172,2378.0,2377.6,0.42048]
[1726587297897,4.5013,2378.0,2377.1,4.5836]
[1726587298103,3.62828,2377.7,2377.3,0.42053]
[1726587298891,3.2078,2377.7,2377.4,0.42052]
[1726587299289,4.92172,2378.0,2377.6,0.42047]
[1726587299489,4.5013,2378.0,2377.3,5.09133]
[1726587299801,4.92172,2378.0,2377.6,0.42048]
[1726587300093,4.92172,2378.0,2377.3,4.04]
[1726587300094,0.42043,2377.9,2377.5,0.42049]
[1726587300295,4.92172,2378.0,2377.6,0.42047]
[1726587300498,3.2078,2378.0,2377.9,0.42043]
[1726587300706,1.3567,2378.6,2378.3,0.42035]
[1726587300903,1.77701,2378.6,2378.2,0.42036]
[1726587301199,1.3567,2378.6,2378.3,0.42036]
[1726587301800,1.3567,2378.6,2378.1,4.04]
[1726587301999,1.4128,2379.0,2378.4,4.04]
[1726587302203,0.42024,2379.0,2378.6,0.4203]
[1726587302399,0.4203,2378.7,2378.5,1.261]
[1726587302601,3.2078,2378.7,2378.5,1.261]
[1726587303103,3.2078,2379.0,2378.7,0.42027]
[1726587303304,3.2078,2379.0,2378.9,0.42025]
[1726587303604,1.3423,2379.2,2379.1,0.42022]
[1726587303900,1.3423,2379.2,2378.7,4.04]
[1726587303901,3.2078,2379.3,2379.2,0.4202]
[1726587304307,1.76243,2379.6,2379.3,0.42017]
[1726587304308,1.3423,2379.6,2379.3,0.42017]
[1726587304898,1.3423,2379.6,2379.4,0.42016]
[1726587305103,3.2078,2380.1,2379.5,0.42015]
[1726587305402,0.42006,2380.0,2379.2,4.04]
[1726587305613,4.88675,2380.1,2379.5,0.42014]
[1726587305796,4.4667,2380.1,2379.3,1.2962]
[1726587306102,4.88675,2380.1,2379.5,0.42015]
[1726587306401,4.4667,2380.1,2379.8,0.42008]
[1726587306894,3.2078,2380.4,2379.9,4.2016]
[1726587307201,3.2078,2380.4,2379.9,3.2078]
[1726587307502,3.2078,2380.4,2380.0,1.70625]
[1726587307692,3.2078,2380.4,2380.1,0.42004]
[1726587308006,3.2078,2380.4,2380.0,1.2862]
[1726587308207,3.2078,2380.4,2380.3,0.42001]
[1726587308505,3.2078,2380.4,2380.2,0.42001]
[1726587308703,1.2589,2380.7,2380.3,0.41999]
[1726587308902,1.2589,2380.7,2380.1,4.04]
[1726587309204,3.2078,2381.0,2380.0,1.5066978]
[1726587309392,3.62774,2380.7,2380.1,0.42003]
[1726587309800,3.62774,2380.7,2380.0,1.5066978]
[1726587310000,3.2078,2380.7,2380.0,1.5066978]
[1726587310206,3.2078,2380.7,2380.1,3.2078]
[1726587310607,3.2078,2380.7,2380.5,0.41996]
[1726587311103,3.2078,2380.7,2380.3,4.04]
[1726587311297,3.2078,2380.7,2380.4,0.41998]
[1726587311700,3.2078,2380.7,2380.6,0.41995]
[1726587311903,3.2078,2380.7,2380.4,0.41997]
[1726587312099,1.3905,2380.9,2380.7,0.41993]
[1726587312408,1.3905,2380.9,2380.6,4.45994]
[1726587312600,1.3905,2380.9,2380.6,4.04]
[1726587313001,1.3905,2380.9,2380.7,0.41993]
[1726587313197,3.2078,2381.4,2380.6,4.04]
[1726587313408,3.2078,2381.1,2380.6,4.04]
[1726587313712,3.2078,2381.1,2380.8,0.41991]
[1726587313904,3.2078,2381.1,2380.9,0.4199]
[1726587314096,3.2078,2381.1,2380.8,0.41991]
[1726587314301,3.2078,2381.1,2380.4,4.81626841]
[1726587314502,3.2078,2380.8,2380.5,0.41996]
[1726587315202,3.2078,2381.2,2380.5,4.2008]
[1726587315411,3.2078,2381.2,2380.8,0.41992]
[1726587315611,3.2078,2381.2,2380.6,4.04]
[1726587315911,3.2078,2381.2,2381.1,0.41986]
[1726587316102,3.2078,2381.2,2381.1,4.61986]
[1726587316306,3.2078,2381.2,2381.0,0.41988]
[1726587316508,1.3723,2381.4,2380.9,8.24]
[1726587316705,1.3723,2381.4,2381.1,0.41986]
[1726587316902,1.3723,2381.4,2381.0,0.41987]
[1726587317101,1.3723,2381.4,2380.7,5.9026]
[1726587317511,1.3723,2381.4,2381.0,0.41987]
[1726587317711,1.3723,2381.4,2380.7,5.9026]
[1726587317917,1.3723,2381.4,2380.9,4.04]
[1726587318218,1.3723,2381.4,2381.0,0.41987]
[1726587319016,1.3723,2381.4,2380.9,0.41989]
[1726587319207,1.3723,2381.4,2380.7,6.12954779]
[1726587319208,1.3723,2381.4,2381.0,0.41988]
[1726587320015,1.3723,2381.4,2380.7,6.12954779]
[1726587320516,1.3723,2381.4,2381.0,0.41987]
[1726587320719,1.3723,2381.4,2380.9,0.41989]
[1726587321208,1.3723,2381.4,2380.7,6.12954779]
[1726587321209,1.3723,2381.4,2381.0,0.41988]
[1726587322205,1.3723,2381.4,2380.8,0.41992]
[1726587322206,3.2078,2381.2,2380.8,0.41992]
[1726587322406,3.2078,2381.2,2380.7,2.92174779]
[1726587322611,3.2078,2381.2,2380.9,0.4199]
[1726587323111,3.2078,2381.2,2381.0,0.41988]
[1726587323321,3.2078,2381.2,2380.7,2.92174779]
[1726587323512,1.3723,2381.4,2380.7,2.92174779]
[1726587323712,1.3723,2381.4,2380.9,0.41989]
[1726587323713,3.2078,2381.1,2380.9,0.41989]
[1726587324222,3.2078,2381.3,2381.0,0.41988]
[1726587324617,3.2078,2381.3,2380.7,2.92174779]
[1726587324817,1.3723,2381.4,2381.0,0.41987]
[1726587325215,3.2078,2381.3,2380.9,0.41989]
[1726587325410,3.2078,2381.3,2380.7,1.3743]
[1726587325616,1.04976,2380.9,2380.2,0.22192487]
[1726587325816,1.04976,2380.9,2379.9,0.211]
[1726587325817,3.2078,2380.4,2380.0,0.42005]
[1726587326114,3.2078,2380.4,2379.7,1.3226]
[1726587326115,3.2078,2380.4,2380.1,0.42004]
[1726587326616,3.2078,2380.4,2380.2,0.42001]
[1726587326817,3.2078,2380.5,2379.8,4.04]
[1726587327017,3.2078,2380.5,2380.1,0.42003]
[1726587327221,3.2078,2380.5,2379.8,5.0902]
[1726587327422,3.2078,2380.5,2380.3,0.42]
[1726587327721,3.2078,2380.5,2380.0,4.04]
[1726587328021,4.5138,2380.8,2380.0,4.04]
[1726587328219,3.2078,2380.5,2380.1,0.42004]
[1726587328412,3.2078,2380.5,2380.0,0.42005]
[1726587329015,0.41994,2380.7,2379.8,4.04]
[1726587329424,4.93373,2380.8,2380.1,0.42004]
[1726587329617,0.41994,2380.7,2380.0,0.42005]
[1726587330020,3.2078,2380.5,2379.9,0.42007]
[1726587330220,3.62778,2380.5,2379.8,0.22496988]
[1726587330419,3.2078,2380.5,2379.7,1.3226]
[1726587330724,3.2078,2380.5,2380.0,0.42006]
[1726587330925,3.2078,2380.5,2379.7,5.3626]
[1726587330926,3.2078,2380.5,2379.9,0.42007]
[1726587331126,3.2078,2380.5,2380.0,4.04]
[1726587331323,4.5138,2380.8,2380.3,4.04]
[1726587331519,4.5138,2380.8,2380.2,0.42001]
[1726587331726,4.5138,2380.8,2380.1,0.42003]
[1726587331922,4.5138,2380.8,2380.2,0.42001]
[1726587332328,4.93373,2380.8,2380.0,4.46004]
[1726587332729,4.5138,2380.8,2380.1,0.42003]
[1726587332930,4.93372,2380.8,2380.1,0.42003]
[1726587333132,4.93372,2380.8,2380.0,4.46005]
[1726587333325,4.5138,2380.8,2380.1,0.42004]
[1726587333532,4.5138,2380.8,2380.2,0.42001]
[1726587333934,4.5138,2380.8,2380.3,0.42]
[1726587334129,4.5138,2380.8,2380.1,0.42003]
[1726587334328,4.5138,2380.8,2380.0,4.26630618]
[1726587334329,4.5138,2380.8,2380.0,0.22630618]
[1726587334530,3.2078,2380.4,2379.7,8.5704]
[1726587334826,3.2078,2380.4,2379.9,0.42006]
[1726587335231,3.2078,2380.4,2379.9,0.42007]
[1726587335627,3.62779,2380.4,2379.8,0.42009]
[1726587335829,3.2078,2380.4,2379.7,5.1816688]
[1726587336036,0.42001,2380.3,2379.7,5.1816788]
[1726587336333,0.42001,2380.3,2379.4,5.3089]
[1726587336334,3.2078,2380.1,2379.4,4.04]
[1726587336531,3.2078,2380.1,2379.6,0.42012]
[1726587336728,3.2078,2380.1,2379.5,0.42013]
[1726587336928,3.2078,2380.1,2379.6,0.42013]
[1726587337137,3.62785,2380.1,2379.5,0.42014]
[1726587337531,3.2078,2380.1,2379.4,0.64835051]
[1726587337738,0.42007,2380.0,2379.5,0.42015]
[1726587337933,3.2078,2380.1,2379.4,0.64835051]
[1726587337934,0.42008,2379.9,2379.4,0.64835051]
[1726587338235,3.2078,2379.8,2379.4,0.64835051]
[1726587338538,3.2078,2379.8,2379.2,5.3506]
[1726587338740,3.62789,2379.8,2379.3,0.42017]
[1726587338938,3.62791,2379.7,2379.2,5.77079]
[1726587339133,1.3355,2379.6,2379.2,0.42019]
[1726587339435,1.3355,2379.6,2378.7,1.0507]
[1726587339436,3.2078,2379.3,2378.7,1.2674]
[1726587339638,3.2078,2379.3,2379.0,0.42023]
[1726587339943,3.9576,2379.6,2378.9,5.09061]